fUSD/lending_fUSD_20260118
["ID","MTS","AMOUNT","RATE_DAILY","PERIOD"]
[402636700,1768732259654,-500.0,0.00017808,2]
[402636701,1768732259663,-500.0,0.00017808,2]
[402636702,1768732259672,-500.0,0.00017808,2]
[402636703,1768732259681,-1611.7,0.00017808,2]
[402636704,1768732259690,-506.07,0.00017808,2]
[402636705,1768732259699,-500.0,0.00017808,2]
[402636706,1768732259708,-500.0,0.00017808,2]
[402636707,1768732259717,-546.15,0.00017808,2]
[402636708,1768732259726,-500.0,0.00017808,2]
[402636709,1768732259735,-500.0,0.00017808,2]
[402636710,1768732259744,-500.0,0.00017808,2]
[402636711,1768732259753,-500.0,0.00017808,2]
[402636712,1768732259762,-604.43211204,0.00017808,2]
[402636713,1768732259771,-500.0,0.00017808,2]
[402636714,1768732259780,-500.0,0.00017808,2]
[402636715,1768732259790,-500.0,0.00017808,2]
[402636716,1768732259799,-500.0,0.00017808,2]
[402636717,1768732259807,-500.0,0.00017808,2]
[402636718,1768732259816,-597.05,0.00017808,2]
[402636719,1768732259826,-500.0,0.00017808,2]
[402636720,1768732259835,-500.0,0.00017808,2]
[402636721,1768732259844,-500.0,0.00017808,2]
[402636722,1768732259853,-500.0,0.00017808,2]
[402636723,1768732259862,-500.0,0.00017808,2]
[402636724,1768732259871,-500.0,0.00017808,2]
[402636725,1768732259880,-500.0,0.00017808,2]
[402636726,1768732259889,-500.0,0.00017808,2]
[402636727,1768732259898,-500.0,0.00017808,2]
[402636728,1768732259907,-500.0,0.00017808,2]
[402636729,1768732259917,-500.0,0.00017808,2]
[402636730,1768732259927,-500.0,0.00017808,2]
[402636731,1768732259938,-500.0,0.00017808,2]
[402636732,1768732259948,-500.0,0.00017808,2]
[402636733,1768732259958,-570.19,0.00017808,2]
[402636734,1768732259969,-500.0,0.00017808,2]
[402636735,1768732259978,-500.0,0.00017808,2]
[402636736,1768732259988,-500.0,0.00017808,2]
[402636737,1768732259998,-521.03,0.00017808,2]
[402636738,1768732260007,-6419.9340803,0.00017808,3]
[402636739,1768732260018,-500.0,0.00017808,2]
[402636740,1768732260028,-595.5,0.00017808,2]
[402636741,1768732260037,-500.0,0.00017808,2]
[402636742,1768732260047,-626.37,0.00017808,2]
[402636743,1768732260058,-500.0,0.00017808,2]
[402636744,1768732260068,-705.84,0.00017808,2]
[402636745,1768732260077,-500.0,0.00017808,2]
[402636746,1768732260087,-500.0,0.00017808,2]
[402636747,1768732260096,-1595.35,0.00017808,2]
[402636748,1768732260105,-500.0,0.00017808,2]
[402636749,1768732260114,-500.0,0.00017808,2]
[402636750,1768732260125,-500.0,0.00017808,2]
[402636751,1768732260134,-500.0,0.00017808,2]
[402636752,1768732260144,-546.59739914,0.00017808,2]
[402636753,1768732260153,-500.0,0.00017808,2]
[402636754,1768732260162,-500.0,0.00017808,2]
[402636755,1768732260170,-500.0,0.00017808,2]
[402636756,1768732260178,-500.0,0.00017808,2]
[402636757,1768732260187,-500.0,0.00017808,2]
[402636758,1768732260198,-500.0,0.00017808,2]
[402636759,1768732260207,-500.0,0.00017808,2]
[402636760,1768732260217,-500.0,0.00017808,2]
[402636761,1768732260227,-500.0,0.00017808,2]
[402636762,1768732260236,-500.0,0.00017808,2]
[402636763,1768732260246,-622.92780293,0.00017808,2]
[402636764,1768732260255,-500.0,0.00017808,2]
[402636765,1768732260265,-500.0,0.00017808,2]
[402636766,1768732260275,-500.0,0.00017808,2]
[402636767,1768732260284,-266.96486145,0.00017808,2]
[402636768,1768732260294,-500.0,0.00017808,2]
[402636769,1768732260303,-712.97,0.00017808,2]
[402636770,1768732260313,-500.0,0.00017808,2]
[402636771,1768732260322,-500.0,0.00017808,2]
[402636772,1768732260333,-483.46208043,0.00017808,2]
[402636773,1768732260343,-500.0,0.00017808,2]
[402636774,1768732260352,-500.0,0.00017808,2]
[402636775,1768732260362,-658.8,0.00017808,2]
[402636776,1768732260372,-461.25024724,0.00017808,2]
[402636777,1768732260381,-500.0,0.00017808,2]
[402636778,1768732260391,-500.0,0.00017808,2]
[402636779,1768732260400,-500.0,0.00017808,2]
[402636780,1768732260409,-677.13,0.00017808,2]
[402636781,1768732260418,-500.0,0.00017808,2]
[402636782,1768732260427,-500.0,0.00017808,2]
[402636783,1768732260436,-500.0,0.00017808,2]
[402636784,1768732260445,-500.0,0.00017808,2]
[402636785,1768732260456,-500.0,0.00017808,2]
[402636786,1768732260466,-500.0,0.00017808,2]
[402636787,1768732260479,-500.0,0.00017808,2]
[402636788,1768732260488,-500.0,0.00017808,2]
[402636789,1768732260498,-500.0,0.00017808,2]
[402636790,1768732260508,-777.05,0.00017808,2]
[402636791,1768732260519,-500.0,0.00017808,2]
[402636792,1768732260528,-4641.83,0.00017808,2]
[402636793,1768732260538,-500.0,0.00017808,2]
[402636794,1768732260548,-500.0,0.00017808,2]
[402636795,1768732260558,-500.0,0.00017808,2]
[402636796,1768732260567,-500.0,0.00017808,2]
[402636797,1768732260576,-500.0,0.00017808,2]
[402636798,1768732260586,-207.19150813,0.00017808,2]
[402636799,1768732260595,-500.0,0.00017808,2]
[402636800,1768732260604,-500.0,0.00017808,2]
[402636801,1768732260614,-500.0,0.00017808,2]
[402636802,1768732260623,-500.0,0.00017808,2]
[402636803,1768732260633,-494.52780898,0.00017808,2]
[402636804,1768732260642,-500.0,0.00017808,2]
[402636805,1768732260651,-500.0,0.00017808,2]
[402636806,1768732260660,-500.0,0.00017808,2]
[402636807,1768732260670,-500.0,0.00017808,2]
[402636808,1768732260679,-500.0,0.00017808,2]
[402636809,1768732260688,-561.98,0.00017808,2]
[402636810,1768732260697,-500.0,0.00017808,2]
[402636811,1768732260706,-500.0,0.00017808,2]
[402636812,1768732260716,-500.0,0.00017808,2]
[402636813,1768732260725,-500.0,0.00017808,2]
[402636814,1768732260735,-500.0,0.00017808,2]
[402636815,1768732260744,-500.0,0.00017808,2]
[402636816,1768732260754,-500.0,0.00017808,2]
[402636817,1768732260766,-500.0,0.00017808,2]
[402636818,1768732260776,-500.0,0.00017808,2]
[402636819,1768732260785,-542.24,0.00017808,2]
[402636820,1768732260794,-500.0,0.00017808,2]
[402636821,1768732260803,-500.0,0.00017808,2]
[402636822,1768732260812,-500.0,0.00017808,2]
[402636823,1768732260822,-500.0,0.00017808,2]
[402636824,1768732260831,-500.0,0.00017808,2]
[402636825,1768732260841,-500.0,0.00017808,2]
[402636826,1768732260851,-500.0,0.00017808,2]
[402636827,1768732260860,-500.0,0.00017808,2]
[402636828,1768732260869,-561.92248124,0.00017808,2]
[402636829,1768732260879,-500.0,0.00017808,2]
[402636830,1768732260889,-500.0,0.00017808,2]
[402636831,1768732260899,-500.0,0.00017808,2]
[402636832,1768732260908,-500.0,0.00017808,2]
[402636833,1768732260918,-182.10475392,0.00017808,2]
[402636834,1768732260927,-513.23,0.00017808,2]
[402636835,1768732260939,-527.81,0.00017808,2]
[402636836,1768732260948,-500.0,0.00017808,2]
[402636837,1768732260958,-513.36327137,0.00017808,2]
[402636838,1768732260967,-633.11689078,0.00017808,2]
[402636839,1768732260975,-500.0,0.00017808,2]
[402636840,1768732260985,-500.0,0.00017808,2]
[402636841,1768732260994,-508.74,0.00017808,2]
[402636842,1768732261003,-500.0,0.00017808,2]
[402636843,1768732261012,-500.0,0.00017808,2]
[402636844,1768732261022,-527.91,0.00017808,2]
[402636845,1768732261031,-500.0,0.00017808,2]
[402636846,1768732261040,-500.0,0.00017808,2]
[402636847,1768732261049,-502.33,0.00017808,2]
[402636848,1768732261059,-3368.44,0.00017808,2]
[402636849,1768732261068,-500.0,0.00017808,2]
[402636850,1768732261077,-500.0,0.00017808,2]
[402636851,1768732261086,-500.0,0.00017808,2]
[402636852,1768732261095,-281.66125483,0.00017808,2]
[402636853,1768732261104,-500.0,0.00017808,2]
[402636854,1768732261114,-500.0,0.00017808,2]
[402636855,1768732261123,-500.0,0.00017808,2]
[402636856,1768732261132,-500.0,0.00017808,2]
[402636857,1768732261141,-500.0,0.00017808,2]
[402636858,1768732261150,-500.0,0.00017808,2]
[402636859,1768732261159,-500.0,0.00017808,2]
[402636860,1768732261168,-696.23,0.00017808,2]
[402636861,1768732261177,-590.75658913,0.00017808,2]
[402636862,1768732261186,-500.0,0.00017808,2]
[402636863,1768732261196,-500.0,0.00017808,2]
[402636864,1768732261205,-535.02,0.00017808,2]
[402636865,1768732261215,-500.0,0.00017808,2]
[402636866,1768732261224,-500.0,0.00017808,2]
[402636867,1768732261233,-500.0,0.00017808,2]
[402636868,1768732261243,-602.78,0.00017808,2]
[402636869,1768732261252,-500.0,0.00017808,2]
[402636870,1768732261261,-574.59,0.00017808,2]
[402636871,1768732261270,-500.0,0.00017808,2]
[402636872,1768732261280,-433.58595295,0.00017808,2]
[402636873,1768732261289,-500.0,0.00017808,2]
[402636874,1768732261298,-500.0,0.00017808,2]
[402636875,1768732261307,-500.0,0.00017808,2]
[402636876,1768732261317,-500.0,0.00017808,2]
[402636877,1768732261326,-500.0,0.00017808,2]
[402636878,1768732261337,-500.0,0.00017808,2]
[402636879,1768732261347,-500.0,0.00017808,2]
[402636880,1768732261357,-500.0,0.00017808,2]
[402636881,1768732261366,-600.0,0.00017808,2]
[402636882,1768732261375,-250.0,0.00017808,2]
[402636883,1768732261385,-1000.0,0.00017808,2]
[402636884,1768732261394,-163.1649928,0.00017808,2]
[402636885,1768732261404,-5343.35204157,0.00017818,2]
[402636886,1768732261414,-2402.73867139,0.0001783,2]
[402636887,1768732261423,-200.0,0.00017855,2]
[402636888,1768732261433,-200.0,0.00017856,2]
[402636889,1768732261442,-200.0,0.00017856,2]
[402636890,1768732261451,-5800.0,0.00017858,2]
[402636891,1768732261460,-500.0,0.00017863,2]
[402636892,1768732261471,-500.0,0.00017863,2]
[402636893,1768732261480,-1619.5977925,0.00017864,2]
[402636894,1768732261490,-5800.0,0.00017866,2]
[402636895,1768732261499,-172.84,0.00017866,2]
[402636896,1768732261508,-4720.55387576,0.00017866,2]
[402636897,1768732261518,-7061.66628035,0.00017866,2]
[402636898,1768732261527,-9554.6781,0.00017866,2]
[402636899,1768732261537,-226.6,0.00017868,2]
[402636900,1768732261547,-5800.0,0.00017874,2]
[402636901,1768732261556,-150.0,0.0001788,2]
[402636902,1768732261566,-2523.4803257,0.0001788,2]
[402636903,1768732261575,-5800.0,0.00017883,2]
[402636904,1768732261584,-5800.0,0.00017891,2]
[402636905,1768732261596,-309.58293221,0.000179,2]
[402636906,1768732261606,-5800.0,0.000179,2]
[402636907,1768732261615,-6898.1368,0.000179,2]
[402636908,1768732261625,-8697.59276557,0.000179,2]
[402636909,1768732261635,-3092.052693,0.000179,2]
[402636910,1768732261644,-1249.39886294,0.000179,2]
[402636911,1768732261654,-1132.80477824,0.000179,2]
[402636912,1768732261664,-211.61539095,0.000179,3]
[402636913,1768732261674,-829.5534708,0.000179,2]
[402636914,1768732261683,-500.0,0.00017918,2]
[402636915,1768732261693,-500.0,0.00017918,2]
[402636916,1768732261703,-661.50728786,0.0001797,2]
[402636917,1768732261712,-500.0,0.00017972,2]
[402636918,1768732261723,-224.71091954,0.00017972,2]
[402636919,1768732261732,-765.0,0.00017973,2]
[402636920,1768732261742,-172.84,0.00017975,2]
[402636921,1768732261752,-166.66,0.00017981,2]
[402636922,1768732261762,-233.4771006,0.0001799,2]
[402636923,1768732261772,-233.4771006,0.0001799,2]
[402636924,1768732261782,-10424.892327,0.00017998,2]
[402636925,1768732261795,-300.0,0.00017998,2]
[402636926,1768732261805,-670.55457234,0.00017998,2]
[402636927,1768732261815,-300.0,0.00017998,2]
[402636928,1768732261825,-261.35951101,0.00017999,2]
[402636929,1768732261835,-115050.3050025,0.00017999,2]
[402636930,1768732261845,-9230.8428639,0.00017999,2]
[402636931,1768732261856,-12995.4092211,0.00017999,2]
[402636932,1768732261866,-1000.0,0.00017999,2]
[402636933,1768732261876,-1000.0,0.00017999,2]
[402636934,1768732261886,-1000.0,0.00017999,2]
[402636935,1768732261896,-1000.0,0.00017999,2]
[402636936,1768732261906,-1000.0,0.00017999,2]
[402636937,1768732261916,-1000.0,0.00017999,2]
[402636938,1768732261926,-1000.0,0.00017999,2]
[402636939,1768732261936,-1000.0,0.00017999,2]
[402636940,1768732261946,-1000.0,0.00017999,2]
[402636941,1768732261955,-1000.0,0.00017999,2]
[402636942,1768732261965,-1007.37691914,0.00017999,2]
[402636943,1768732261975,-300.0,0.00017999,2]
[402636944,1768732261985,-10163.9957604,0.00017999,2]
[402636945,1768732261994,-300.0,0.00017999,2]
[402636946,1768732262004,-300.0,0.00017999,2]
[402636947,1768732262016,-200.0,0.00018,2]
[402636948,1768732262026,-300.0,0.00018,2]
[402636949,1768732262037,-150.0,0.00018,2]
[402636950,1768732262047,-150.0,0.00018,2]
[402636951,1768732262056,-150.0,0.00018,2]
[402636952,1768732262066,-150.0,0.00018,2]
[402636953,1768732262075,-236.45405301,0.00018,2]
[402636954,1768732262085,-150.0,0.00018,2]
[402636955,1768732262095,-150.0,0.00018,2]
[402636956,1768732262105,-150.0,0.00018,2]
[402636957,1768732262115,-150.0,0.00018,2]
[402636958,1768732262125,-265.5663701,0.00018,2]
[402636959,1768732262134,-978773.49821133,0.00018,2]
[402636960,1768732262624,-500.0,0.0001726,2]
[402636961,1768732262634,-168.47769017,0.00018,2]
[402636962,1768732262645,-3561.99998,0.00018,2]
[402636963,1768732263048,-435.582103,0.00015099,2]
[402636964,1768732263065,-231.462097,0.00015099,2]
[402636965,1768732263076,-151.0,0.00015789,2]
[402636966,1768732263085,-230.72060749,0.00016438,2]
[402636967,1768732263740,-270.4257147,0.00016438,2]
[402636968,1768732263749,-489.05537173,0.00016758,2]
[402636969,1768732263761,-272.59462827,0.00016758,2]
[402636970,1768732263770,-613.94541957,0.00017032,2]
[402636971,1768732263782,-147.70458043,0.00017032,2]
[402636972,1768732263792,-500.0,0.00017534,2]
[402636973,1768732263801,-500.0,0.00017808,2]
[402636974,1768732263811,-249.00467733,0.000179,2]
[402636975,1768732263820,-652.72330229,0.00018,2]
[402636976,1768732263832,-170025.11478658,0.00018,2]
[402636977,1768732263843,-573.89714598,0.00018,2]
[402636978,1768732263855,-808.13842488,0.00018,2]
[402636979,1768732263867,-7236.04691255,0.00018,2]
[402636980,1768732263878,-472.28752402,0.00018,2]
[402636981,1768732263911,-365.6300001,0.00018,2]
[402636982,1768732263923,-866.3099,0.00018,2]
[402636983,1768732263979,-349.87046341,0.00018,2]
[402636991,1768732390204,1813.36,0.00013152,2]
[402637008,1768733200123,-306.408,0.00014796,2]
[402637009,1768733200147,-507.45071786,0.00014997,2]
[402637011,1768733347067,-166.66,0.00014337,2]
[402637012,1768733347087,-166.66,0.00014639,2]
[402637013,1768733377218,559.47,0.00027397,120]
[402637020,1768733431562,-869.56,0.00014841,2]
[402637026,1768733431617,-462.1300956,0.00014841,2]
[402637028,1768733431629,-1075.43,0.00014841,2]
[402637029,1768733431640,-594.61795665,0.00014841,2]
[402637031,1768733431652,-271.414428,0.00014841,2]
[402637032,1768733431721,-815.82400348,0.00014841,2]
[402637033,1768733431732,-951.09995283,0.00014841,2]
[402637034,1768733431775,-810.9975999,0.00014841,2]
[402637035,1768733431786,-1886.95938716,0.00014841,2]
[402637036,1768733431795,-151.0,0.00014895,2]
[402637037,1768733431805,-151.0,0.00014895,2]
[402637038,1768733431815,-300.0,0.00014897,2]
[402637039,1768733431824,-1200.0,0.00014897,2]
[402637040,1768733431834,-16222.69629812,0.00014898,2]
[402637041,1768733431857,-699.36702806,0.00014898,2]
[402637042,1768733431868,-2450.20520032,0.00014898,2]
[402637044,1768733431879,-1940.62432845,0.00014898,2]
[402637046,1768733431890,-1186.5106101,0.00014898,2]
[402637076,1768733437656,-448.79151776,0.00014898,2]
[402637077,1768733437714,-16685.53256987,0.00014898,2]
[402637078,1768733437726,-1153.42139543,0.00014898,2]
[402637079,1768733437738,-594.64477714,0.00014898,2]
[402637080,1768733437770,-10410.83010401,0.00014898,2]
[402637081,1768733437781,-1196.42200763,0.00014898,2]
[402637082,1768733437792,-23007.05488118,0.00014898,2]
[402637083,1768733437803,-2774.8928558,0.00014898,2]
[402637084,1768733437823,-809.15187004,0.00014898,2]
[402637085,1768733437930,-583.71228029,0.00014898,2]
[402637098,1768733439811,-9506.2,0.00014898,2]
[402637099,1768733439916,-287690.23112035,0.00014898,2]
[402637100,1768733439927,-55728.93029231,0.00014898,2]
[402637101,1768733439969,-504.34826858,0.00014898,2]
[402637102,1768733440025,-5537.36,0.00014898,2]
[402637103,1768733440079,-385.3805,0.00014898,2]
[402637104,1768733440090,-540.97326464,0.00014898,2]
[402637105,1768733440101,-10067.64992968,0.00014898,2]
[402637106,1768733440112,-549875.06890024,0.00014898,2]
[402637107,1768733440121,-166.66,0.00014941,2]
[402637108,1768733440131,-883.07666783,0.00014997,2]
[402637109,1768733440141,-21239.139,0.00014998,2]
[402637110,1768733440152,-181.03718058,0.00014999,2]
[402637111,1768733440163,-156.83,0.00015063,2]
[402637112,1768733440173,-689.34,0.0001507,2]
[402637113,1768733440183,-500.0,0.00015097,2]
[402637114,1768733440192,-300.0,0.00015097,2]
[402637115,1768733440201,-622.72274249,0.00015097,2]
[402637116,1768733440210,-5323.93942531,0.00015098,2]
[402637117,1768733440219,-193.31018197,0.00015098,2]
[402637118,1768733440228,-7738.03342358,0.00015181,2]
[402637119,1768733440238,-500.0,0.00015198,2]
[402637120,1768733440247,-500.0,0.00015198,2]
[402637121,1768733440256,-500.0,0.00015198,2]
[402637122,1768733440266,-631.19399297,0.00015198,2]
[402637123,1768733440275,-500.0,0.00015198,2]
[402637124,1768733440284,-500.0,0.00015198,2]
[402637125,1768733440293,-214.03807997,0.00015198,2]
[402637126,1768733440303,-166.66,0.00015242,2]
[402637127,1768733440312,-673.27,0.00015259,2]
[402637128,1768733440321,-426.71,0.00015259,2]
[402637129,1768733440330,-399.65839666,0.00015307,2]
[402637130,1768733440583,-5323.93942523,0.00015409,2]
[402637131,1768733440593,-7738.03342358,0.00015521,2]
[402637132,1768733440602,-166.66,0.00015544,2]
[402637133,1768733440613,-1736.79,0.00015618,2]
[402637134,1768733440623,-500.0,0.00015673,2]
[402637135,1768733440632,-402.56874527,0.00015673,2]
[402637136,1768733440642,-500.0,0.00015673,2]
[402637137,1768733440651,-1216.93,0.00015702,2]
[402637138,1768733440661,-5323.93942523,0.00015721,2]
[402637139,1768733440670,-166.66,0.00015846,2]
[402637140,1768733440679,-7738.03342358,0.00015861,2]
[402637141,1768733440689,-181.03718055,0.00015966,2]
[402637142,1768733440698,-673.27,0.00016022,2]
[402637143,1768733440708,-5323.93942523,0.00016032,2]
[402637144,1768733440717,-150.0,0.00016055,2]
[402637145,1768733440727,-500.0,0.00016055,2]
[402637146,1768733440736,-150.0,0.0001611,2]
[402637147,1768733440745,-500.0,0.0001611,2]
[402637148,1768733440754,-156.83,0.00016139,2]
[402637149,1768733440763,-150.0,0.00016164,2]
[402637150,1768733440773,-500.0,0.00016164,2]
[402637151,1768733440782,-224.2533444,0.00016165,2]
[402637152,1768733440792,-500.0,0.00016165,2]
[402637153,1768733440801,-150.0,0.000162,2]
[402637154,1768733440810,-150.0,0.000162,2]
[402637155,1768733440819,-150.0,0.000162,2]
[402637156,1768733440829,-150.0,0.000162,2]
[402637157,1768733440838,-150.0,0.000162,2]
[402637158,1768733440848,-150.0,0.000162,2]
[402637159,1768733440857,-150.0,0.000162,2]
[402637160,1768733440867,-150.0,0.000162,2]
[402637161,1768733440876,-150.0,0.00016219,2]
[402637162,1768733440885,-545.51876054,0.00016219,2]
[402637163,1768733440895,-500.0,0.00016219,2]
[402637164,1768733440904,-1000.0,0.00016221,2]
[402637165,1768733440913,-381.0,0.00016229,2]
[402637166,1768733440922,-150.0,0.00016274,2]
[402637167,1768733440931,-500.0,0.00016274,2]
[402637168,1768733440941,-420.0,0.00016306,2]
[402637169,1768733440950,-150.0,0.00016328,2]
[402637170,1768733440960,-500.0,0.00016329,2]
[402637171,1768733440969,-150.0,0.00016338,2]
[402637172,1768733440980,-5323.93942523,0.00016343,2]
[402637173,1768733440990,-5281.53667483,0.0001636,2]
[402637174,1768733441000,-150.0,0.00016383,2]
[402637175,1768733441011,-417.0,0.00016384,2]
[402637176,1768733441022,-250.0,0.00016387,2]
[402637177,1768733441032,-1680.0,0.00016387,2]
[402637178,1768733441041,-155.6514004,0.00016428,2]
[402637179,1768733441051,-155.0,0.00016437,2]
[402637180,1768733441060,-250.0,0.00016438,2]
[402637181,1768733441069,-500.0,0.00016438,2]
[402637182,1768733441079,-500.0,0.00016438,2]
[402637183,1768733441088,-500.0,0.00016438,2]
[402637184,1768733441098,-500.0,0.00016438,2]
[402637185,1768733441106,-500.0,0.00016438,2]
[402637186,1768733441115,-500.0,0.00016438,2]
[402637187,1768733441124,-378.05924286,0.00016438,2]
[402637188,1768733441133,-500.0,0.00016438,2]
[402637189,1768733441142,-500.0,0.00016438,2]
[402637190,1768733441152,-500.0,0.00016438,2]
[402637191,1768733441161,-500.0,0.00016438,2]
[402637192,1768733441170,-500.0,0.00016438,2]
[402637193,1768733441179,-597.05,0.00016438,2]
[402637194,1768733441189,-500.0,0.00016438,2]
[402637195,1768733441198,-500.0,0.00016438,2]
[402637196,1768733441207,-500.0,0.00016438,2]
[402637197,1768733441217,-500.0,0.00016438,2]
[402637198,1768733441227,-500.0,0.00016438,2]
[402637199,1768733441236,-477.49917106,0.00016438,2]
[402637200,1768733441245,-500.0,0.00016438,2]
[402637201,1768733441255,-500.0,0.00016438,2]
[402637202,1768733441264,-500.0,0.00016438,2]
[402637203,1768733441274,-500.0,0.00016438,2]
[402637204,1768733441283,-500.0,0.00016438,2]
[402637205,1768733441293,-500.0,0.00016438,2]
[402637206,1768733441302,-512.32,0.00016438,2]
[402637207,1768733441311,-500.0,0.00016438,2]
[402637208,1768733441321,-500.0,0.00016438,2]
[402637209,1768733441330,-500.0,0.00016438,2]
[402637210,1768733441339,-500.0,0.00016438,2]
[402637211,1768733441349,-500.0,0.00016438,2]
[402637212,1768733441358,-595.5,0.00016438,2]
[402637213,1768733441367,-521.03,0.00016438,2]
[402637214,1768733441377,-500.0,0.00016438,2]
[402637215,1768733441386,-500.0,0.00016438,2]
[402637216,1768733441395,-705.84,0.00016438,2]
[402637217,1768733441404,-500.0,0.00016438,2]
[402637218,1768733441414,-1595.35,0.00016438,2]
[402637219,1768733441423,-500.0,0.00016438,2]
[402637220,1768733441432,-500.0,0.00016438,2]
[402637221,1768733441442,-500.0,0.00016438,2]
[402637222,1768733441451,-500.0,0.00016438,2]
[402637223,1768733441460,-500.0,0.00016438,2]
[402637224,1768733441469,-500.0,0.00016438,2]
[402637225,1768733441478,-500.0,0.00016438,2]
[402637226,1768733441487,-500.0,0.00016438,2]
[402637227,1768733441497,-500.0,0.00016438,2]
[402637228,1768733441507,-1000.0,0.00016438,2]
[402637229,1768733441516,-500.0,0.00016438,2]
[402637230,1768733441526,-500.0,0.00016438,2]
[402637231,1768733441535,-500.0,0.00016438,2]
[402637232,1768733441544,-500.0,0.00016438,2]
[402637233,1768733441553,-500.0,0.00016438,2]
[402637234,1768733441563,-500.0,0.00016438,2]
[402637235,1768733441572,-500.0,0.00016438,2]
[402637236,1768733441581,-500.0,0.00016438,2]
[402637237,1768733441591,-500.0,0.00016438,2]
[402637238,1768733441600,-500.0,0.00016438,2]
[402637239,1768733441609,-500.0,0.00016438,2]
[402637240,1768733441619,-500.0,0.00016438,2]
[402637241,1768733441628,-500.0,0.00016438,2]
[402637242,1768733441638,-500.0,0.00016438,2]
[402637243,1768733441647,-500.0,0.00016438,2]
[402637244,1768733441656,-500.0,0.00016438,2]
[402637245,1768733441665,-500.0,0.00016438,2]
[402637246,1768733441675,-500.0,0.00016438,2]
[402637247,1768733441684,-559.76717123,0.00016438,2]
[402637248,1768733441694,-500.0,0.00016438,2]
[402637249,1768733441703,-500.0,0.00016438,2]
[402637250,1768733441714,-500.0,0.00016438,2]
[402637251,1768733441723,-500.0,0.00016438,2]
[402637252,1768733441733,-500.0,0.00016438,2]
[402637253,1768733441742,-500.0,0.00016438,2]
[402637254,1768733441751,-500.0,0.00016438,2]
[402637255,1768733441760,-500.0,0.00016438,2]
[402637256,1768733441770,-500.0,0.00016438,2]
[402637257,1768733441779,-500.0,0.00016438,2]
[402637258,1768733441788,-500.0,0.00016438,2]
[402637259,1768733441798,-500.0,0.00016438,2]
[402637260,1768733441807,-500.0,0.00016438,2]
[402637261,1768733441817,-500.0,0.00016438,2]
[402637262,1768733441826,-500.0,0.00016438,2]
[402637263,1768733441835,-500.0,0.00016438,2]
[402637264,1768733441845,-500.0,0.00016438,2]
[402637265,1768733441854,-500.0,0.00016438,2]
[402637266,1768733441863,-500.0,0.00016438,2]
[402637267,1768733441872,-300.0,0.00016438,2]
[402637268,1768733441881,-500.0,0.00016438,2]
[402637269,1768733441890,-500.0,0.00016438,2]
[402637270,1768733441899,-500.0,0.00016438,2]
[402637271,1768733441908,-500.0,0.00016438,2]
[402637272,1768733441918,-500.0,0.00016438,2]
[402637273,1768733441928,-500.0,0.00016438,2]
[402637274,1768733441938,-253.68769872,0.00016438,2]
[402637275,1768733441947,-500.0,0.00016438,2]
[402637276,1768733441957,-500.0,0.00016438,2]
[402637277,1768733441966,-500.0,0.00016438,2]
[402637278,1768733441975,-500.0,0.00016438,2]
[402637279,1768733441984,-500.0,0.00016438,2]